Cogmind - Beta 9.3 @@@ ROGUE MODE // 2019.12.24 @ 16:34:26 // Winter2019/RPGLIKE Player: stormcleaver5 Result: Destroyed by as-59683 with Assembled Blade Performance ------------- Evolutions (0) 0 Regions Visited (2) 400 Robots Destroyed (23) 115 Value Destroyed (469) 469 Prototype IDs (4) 80 Alien Tech Used (0) 0 Bonus (0) 0 TOTAL SCORE: 1064 Bonus ------- None Cogmind --------- Core Integrity 0/600 Matter 290/300 Energy 118/125 System Corruption 1% Temperature Cool (0) Movement Rolling (80) Location -10/Mines Parts ------- > --- POWER (1) -------- Light Ion Engine > --- PROPULSION (1) --- Wheel > --- UTILITY (1) ------ Heat Sink > --- WEAPON (2) ------- EM Pulse Gun > --- INVENTORY (0) ---- (None) Peak State ------------ > --- POWER ------------ Light Ion Engine > --- PROPULSION ------- Aluminum Leg > --- UTILITY ---------- Heat Sink > --- WEAPON ----------- EM Pulse Gun EM Pulse Gun > --- INVENTORY -------- (None) [Rating: 5] Favorites ----------- Power Light Ion Engine Engine Light Ion Engine Propulsion Aluminum Leg Leg Aluminum Leg Wheel Wheel Utility Heat Sink Device Heat Sink Weapon EM Pulse Gun Energy Gun EM Pulse Gun Build | -11 -10 -10 ------- Run | Scr Mat Min Slots Evolved 1 | . 1 . Power . | . . . Propulsion . | . . . Utility . | . . . Weapon 1 | . 1 . Parts Attached 4 | . 3 1 Power . | . . . Engine . | . . . Core . | . . . Reactor . | . . . Propulsion 1 | . 1 . Treads . | . . . Leg . | . . . Wheel 1 | . 1 . Hover . | . . . Flight . | . . . Utility 1 | . 1 . Device 1 | . 1 . Storage . | . . . Processor . | . . . Hackware . | . . . Protection . | . . . Artifact . | . . . Weapon 2 | . 1 1 Energy Gun 2 | . 1 1 Energy Cannon . | . . . Ballistic Gun . | . . . Ballistic Cannon . | . . . Launcher . | . . . Special Weapon . | . . . Impact Weapon . | . . . Slashing Weapon . | . . . Piercing Weapon . | . . . Special Melee Weapon . | . . . Unidentified Prototypes . | . . . Parts Lost . | . . . Power . | . . . Propulsion . | . . . Utility . | . . . Weapon . | . . . Highest Loss Streak . | . . . Average Slot Usage (%) 88 | . 84 98 Engine 20 | . 20 20 Leg 14 | . 19 . Wheel 6 | . 1 20 Device 9 | . 5 20 Energy Gun 38 | . 38 38 Naked Turns . | . . . Heaviest Build 8 | 5 8 8 Greatest Support 10 | 10 10 10 Greatest Overweight (x) 2 | . 2 . Average Overweight (x) . | . . . Largest Inventory Capacity . | . . . Average Capacity . | . . . Most Carried . | . . . Average Carried . | . . . Final Capacity . | . . . Final Carried . | . . . Class Distribution -------------------- 100% | Mutant Dominant Class ---------------- Mutant | -10/Materials Mutant | -10/Mines Resources | -11 -10 -10 ----------- Run | Scr Mat Min Matter Collected 230 | 181 49 . Remotely . | . . . Salvage Created 858 | . 812 46 Parts 46 | . 43 3 Haulers Intercepted 2 | . 2 . Recyclers Shooed 1 | . 1 . Parts Field Recycled . | . . . Retrieved Matter . | . . . Parts Self-Destructed . | . . . Prevented . | . . . Kills | -11 -10 -10 ------- Run | Scr Mat Min Combat Hostiles Destroyed 13 | . 9 4 Guns 10 | . 6 4 AOE 3 | . 3 . Classes Destroyed 8 | . 6 2 Worker 1 | . 1 . Hauler 2 | . 2 . Recycler 2 | . 2 . Operator 2 | . 2 . Watcher 3 | . 3 . Swarmer 3 | . . 3 Grunt 9 | . 9 . Assembled 1 | . . 1 Best Kill Streak 3 | . 3 3 Combat Bots Only 3 | . 2 3 Max Kills in Single Turn 2 | . 2 2 Gunslinging 1 | . . 1 Exploded 2 | . 2 . Melee . | . . . Uniques/NPCs Destroyed . | . . . Combat | -11 -10 -10 -------- Run | Scr Mat Min Damage Taken 1000 | . 335 665 Core 858 | . 275 583 Absorbed by Shields . | . . . Redirected to Core 490 | . 201 289 Core Remaining (%) 100 | 100 . . Volleys Fired 61 | . 49 12 Largest 2 | . 2 2 Hottest 80 | . 80 80 Shots Fired 109 | . 89 20 Gun 109 | . 89 20 Cannon . | . . . Launcher . | . . . Special . | . . . Kinetic . | . . . Thermal . | . . . Explosive . | . . . Electromagnetic 109 | . 89 20 Robot Hit Streak 8 | . 8 4 Robot Miss Streak 3 | . 2 3 Penetration Max . | . . . Secondary Targets 1 | . . 1 Max Gunslinging Chain 1 | . . 1 Shots Hit Robots 74 | . 62 12 Core Hits 33 | . 26 7 Critical Hits . | . . . Critical Kills . | . . . Critical Parts Destroyed . | . . . Melee Attacks . | . . . Impact . | . . . Slashing . | . . . Piercing . | . . . Sneak Attacks . | . . . Combat Hostiles . | . . . Follow-up Attacks . | . . . Damage Inflicted 1182 | . 1050 132 Guns 982 | . 854 128 Cannons . | . . . Explosions 196 | . 196 . Melee . | . . . Ramming 4 | . . 4 Kinetic . | . . . Thermal 196 | . 196 . Explosive . | . . . Electromagnetic 982 | . 854 128 Impact . | . . . Slashing . | . . . Piercing . | . . . Highest Corruption 1 | . . 1 Average Corruption 1 | . . 1 Corruption Purged . | . . . Overload Shots . | . . . Overflow Damage . | . . . Projectiles . | . . . Explosions . | . . . Melee . | . . . Knockbacks . | . . . Impact . | . . . Kinetic . | . . . Secondary . | . . . Self-Inflicted Damage 1 | . . 1 Shots . | . . . Rammed 4 | . . 4 Targets Rammed 4 | . . 4 Kicked . | . . . Crushed . | . . . Highest Temperature 180 | . 180 . Average Temperature 42 | . 42 . Received Heat Transfer 213 | . 213 . Siege Activations . | . . . Robots Corrupted . | . . . Combat Hostiles . | . . . Parts Fried 5 | . 5 . Impact Corruptions . | . . . Robots Melted . | . . . Combat Hostiles . | . . . Parts Melted . | . . . Heat Transferred 250 | . 250 . Parts Sabotaged . | . . . Parts Stolen . | . . . Parts Stripped . | . . . Power Chain Reactions 3 | . 3 . Missiles Intercepted . | . . . Alert | -11 -10 -10 ------- Run | Scr Mat Min Peak Influence 220 | . 220 167 Average Influence 123 | . 108 164 Maximum Alert Level 1 | . 1 . Low Security (%) 89 | 100 85 100 Level 1 10 | . 14 . Level 2 . | . . . Level 3 . | . . . Level 4 . | . . . Level 5 . | . . . High Security . | . . . Max Security . | . . . Squads Dispatched 1 | . 1 . Investigation . | . . . Extermination . | . . . Reinforcement 1 | . 1 . Assault . | . . . Garrison . | . . . Intercept . | . . . Construction Impeded . | . . . Haulers Reinforced . | . . . Stealth | -11 -10 -10 --------- Run | Scr Mat Min Distress Signals 1 | . 1 . Communications Jammed . | . . . Distress Signals . | . . . Times Spotted 31 | . 17 14 Peak Tracking Total 8 | . 3 8 Tactical Retreats 3 | . 1 2 Traps | -11 -10 -10 ------- Run | Scr Mat Min Traps Triggered . | . . . Indirectly . | . . . Trap Hack Attempts . | . . . Triggered . | . . . Disarmed . | . . . Reprogrammed . | . . . Reused . | . . . Traps Extracted . | . . . Installed . | . . . Triggered . | . . . Machines | -11 -10 -10 ---------- Run | Scr Mat Min Machines Disabled 1 | . . 1 Max in Single Turn 1 | . . 1 Machines Sabotaged . | . . . Garrisons Compromised . | . . . Overloaded Fab Kills . | . . . Fab Network Shutdowns . | . . . Hacking | -11 -10 -10 --------- Run | Scr Mat Min Machines Accessed 5 | . 4 1 Terminals 4 | . 4 . Fabricators . | . . . Repair Stations . | . . . Recycling Units . | . . . Scanalyzers . | . . . Garrison Access . | . . . Total Hacks 13 | . 12 1 Successful 6 | . 5 1 Failed 7 | . 7 . Catastrophic . | . . . Database Lockouts . | . . . Manual 3 | . 3 . Terminals 12 | . 12 . Fabricators . | . . . Repair Stations . | . . . Recycling Units . | . . . Scanalyzers . | . . . Garrison Access . | . . . Terminal Hacks 6 | . 5 1 Record 3 | . 3 . Prototype ID Bank 2 | . 2 . Open Door 1 | . . 1 Fabricator Hacks . | . . . Repair Station Hacks . | . . . Recycling Unit Hacks . | . . . Scanalyzer . | . . . Garrison Access Hacks . | . . . Unauthorized Hacks . | . . . Terminals . | . . . Fabricators . | . . . Repair Stations . | . . . Recycling Units . | . . . Scanalyzers . | . . . Garrison Access . | . . . Data Cores Recovered 2 | . 2 . Used 1 | . 1 . Hacking Detections 4 | . 4 . Full Trace Events . | . . . Feedback Events . | . . . Feedback Blocked . | . . . Robot Schematics Acquired . | . . . Robots Built . | . . . Matter . | . . . Time . | . . . Total Robot Build Rating . | . . . Part Schematics Acquired . | . . . Parts Built . | . . . Matter . | . . . Time . | . . . Total Part Build Rating . | . . . Parts Repaired . | . . . Time . | . . . Parts Recycled . | . . . Recycled Matter . | . . . Retrieved Matter . | . . . Retrieved Components . | . . . Parts Scanalyzed . | . . . Part Schematics Acquired . | . . . Parts Damaged . | . . . Bothacking | -11 -10 -10 ------------ Run | Scr Mat Min Used RIF Installer . | . . . Robots Hacked . | . . . Non-combat . | . . . Combat . | . . . Robot Hacks Applied . | . . . Relay Couplers Released . | . . . Robots Rewired . | . . . Allies Hacked . | . . . Hacks Repelled . | . . . Allies | -11 -10 -10 -------- Run | Scr Mat Min Total Allies . | . . . Largest Group . | . . . Highest-Rated Group . | . . . Highest-Rated Ally . | . . . Total Orders . | . . . Ally Attacks . | . . . Total Damage . | . . . Kills . | . . . Allies Corrupted . | . . . Allies Melted . | . . . Intel | -11 -10 -10 ------- Run | Scr Mat Min Robot Analysis Total . | . . . Derelict Logs Recovered . | . . . Drone Launches . | . . . Drone Recoveries . | . . . Exploration | -11 -10 -10 ------------- Run | Scr Mat Min Turns Passed 827 | 3 588 236 Spaces Moved 591 | 3 348 240 Core 1 | . 1 . Treads . | . . . Legs 328 | 3 325 . Wheels 262 | . 22 240 Hover . | . . . Flight . | . . . Fastest Speed 80 | 120 80 80 Average Speed 102 | 120 117 80 Slowest Speed 150 | 120 150 80 Overloaded Moves . | . . . Propulsion Burnouts . | . . . Robots Hopped . | . . . Cave-ins Triggered . | . . . Exploration Rate (%) 41 | 2 68 53 Regions Visited 2 Branch Regions 1 Pre-discovered Areas . | . . . Known Exits Taken . | . . . Unknown Exits Taken 2 | 1 1 . Scrap Searched . | . . . Spaces Dug . | . . . Terrain Destroyed 6 | . 6 . Melee . | . . . Projectile . | . . . AOE 6 | . 6 . Actions | -11 -10 -10 --------- Run | Scr Mat Min Total 702 | 2 436 264 Wait 30 | . 25 5 Move 589 | 2 347 240 Hop . | . . . Pick Up . | . . . Fast Attach 4 | . 3 1 Attach . | . . . Detach . | . . . Swap . | . . . Drop 1 | . 1 . Fire 61 | . 49 12 Melee . | . . . Ram 4 | . . 4 Kick . | . . . Crush . | . . . Escape Stasis . | . . . Rewire . | . . . Trap . | . . . Miscellaneous 13 | . 11 2 Route ------- -11/Scrapyard -10/Materials (discovered 2 exits: [*Mat] / *Min) -10/Mines (discovered 2 exits: [*Mat x2]) History --------- Turn | Location | Event 1 | -11/Scrapyard | Discovered new exit (range 1) 4 | -11/Scrapyard | Entered Materials 69 | -10/Materials | Upgraded with Weapon slot (x1) 116 | -10/Materials | Discovered new exit (range 10) 205 | -10/Materials | Discovered new exit (range 16) 302 | -10/Materials | Build established: Mutant 592 | -10/Materials | Entered Mines 594 | -10/Mines | Reached level 2 624 | -10/Mines | Received a Rocket Launcher from a helpful Derelict 631 | -10/Mines | Discovered new exit (range 8) 702 | -10/Mines | Met a Derelict who couldn't figure out how to use a Trap Extractor 731 | -10/Mines | Discovered new exit (range 13) 753 | -10/Mines | Assembled infested the area 811 | -10/Mines | Core integrity fell below 50% 819 | -10/Mines | Core integrity fell below 20% 828 | -10/Mines | Destroyed by as-59683 with Assembled Blade Last Messages --------------- 00702_ An explosion rips through the floor. 00702_ Machine disabled. 00729_ K-01 Serf collects debris. 00731_ EXIT=FOUND 00733_ K-01 Serf collects debris. 00745_ HB-E1T(g) exits level. 00753_ ALERT: Infestation in the mines, dispatching Demolisher response squad. 00766_ T-07 Excavator destroyed. 00767_ K-01 Serf collects debris. 00774_ U-05 Engineer destroyed. 00788_ K-01 Serf collects debris. 00807_ EM Pulse Gun severed. 00808_ Knocked back. 00810_ EM Pulse Gun severed. 00812_ Slammed into as-78842. 00814_ Slammed into as-59683. 00815_ Destabilizing: System corrupted (+1). 00816_ Acquired EM Pulse Gun. 00825_ as-78842 destroyed. Map ----- +----------------------------------------------------+ | | | | | | | | | | | | | | | | | | | | | | | | | | | | | | | ?????????????????????????????????????????????????? | | ????????####?????????????????????????????????????? | | ??###??## ##?????????????####???????????????????? | | ?## ### #??????######## ####????????????????? | | ## #?????## "" ## ###########??????? | | # ##?????# !]!]"# % #??????? | | # #??????# = !"# % % #??????? | | # ##?????# ! ]## %a###%[ ### #??????? | | # ######## % ## a##?#### ##??????????? | | ## ## X a ##?????? #???????????? | | ?## @ ##??????#???????????? | | ??### #??????????????????? | | ????## #??????????????????? | | ##???# a #??????????????????? | | #?## #??????????????????? | | ## ## ##??????????????????? | | ####### #???????????????????? | | #?????## #### #???????????????????? | | ##????## ##??# #???????????????????? | | ###### ##???? #???????????????????? | | ####????? #???????????????????? | | ### ##???????? #???????????????????? | | # #?## #####????????? #???????????????????? | | # #??## ##????????????? #???????????????????? | | ## ##???# #?######??????? #???????????????????? | | ## ##??## ### ####???? #???????????????????? | | # #### ## ##???? #???????????????????? | | #???? ????????????????????? | | #?????????????????????????? | | ##### ##?????????????????????????? | | ####???# ####??????????????????????????? | | ## ##?????## ##?????????????????????????????? | | ##########?# #??????????????????????????????? | | #?# #?# ##?????????????????????????????? | | #?# #?## ##????????????????????????????? | +----------------------------------------------------+ Best States ------------- Heat Dissipation 35 Energy Generation 10 Energy Capacity 125 Matter Stores 300 Matter Capacity 300 Sight Range 16 Terrain Scan Density 10 Resistance: KI 5 Resistance: TH 10 Evasion (%) 44 Item Schematics ----------------- None Robot Schematics ------------------ None Fabricated ------------ Nothing Alien Tech Used ----------------- None Achievements -------------- None Challenges ------------ None RPGLIKE | -11 -10 -10 --------- Run | Scr Mat Min Levels Raised 1 | . . 1 XP Earned 5220 | 3000 1295 925 XP Spent 2650 | . 2650 . Upgrades 7 | . 7 . Weapon Slot 1 | . 1 . Ranged Accuracy 3 | . 3 . KI Resistance % 1 | . 1 . TH Resistance % 2 | . 2 . Protomatter Created 119 | . 89 30 Integrity Restored 262 | . 226 36 Core 241 | . 205 36 Parts 21 | . 21 . Protomatter Decayed 13 | . 13 . Game ------ Seed CoreVortexCompressor Manual? 0 Play Time 00:10:54 Cumulative 15.6 hours Start 2019.12.24 @ 16:25:52 End 2019.12.24 @ 16:34:26 Sessions 1 Manual Loads 0 Difficulty Rogue Special Mode Winter2019/RPGLIKE Game No. 10 Rogue 10 Adventurer 0 Explorer 0 Win Type - Total 0 Types 0/0/0/0/0/0/0 Lore% 25 Gallery% 20 Achievement% 37 Wizard Run 0 Options --------- ASCII 0 Keyboard 1 Movement Vi Keybinds 0 Fullscreen 2 Font 18/SmallcapsGlow Map View 76x50 Tactical HUD 1 Map Filters NONE Filters NONE Steam 0 RUN: 8eae3eb2-b288-4aa6-b3be-fabe66ecba81